bitfinex/quotes_SOLUSD_20240708
["timestamp","ask_amount","ask_price","bid_price","bid_amount"]
[1720422665565,100.0,132.51,132.47,17.31]
[1720422665951,100.0,132.54,132.47,17.31]
[1720422666265,17.31,132.53,132.48,17.31]
[1720422666595,100.0,132.54,132.47,6.4192]
[1720422666754,100.0,132.54,132.48,0.17]
[1720422668056,100.0,132.56,132.48,0.17]
[1720422669193,100.0,132.56,132.49,15.0269]
[1720422669472,100.0,132.54,132.49,15.0269]
[1720422670370,100.0,132.54,132.46,15.4847]
[1720422670371,100.0,132.52,132.46,15.4847]
[1720422672475,100.0,132.5,132.46,5.93293047]
[1720422672658,100.0,132.5,132.45,0.17]
[1720422673179,100.0,132.52,132.45,0.17]
[1720422674164,100.0,132.54,132.45,0.17]
[1720422674778,100.0,132.52,132.45,20.17]
[1720422675680,100.0,132.5,132.45,20.17]
[1720422675889,100.0,132.5,132.45,0.17]
[1720422677682,100.0,132.52,132.45,0.17]
[1720422679691,100.0,132.54,132.45,0.17]
[1720422679857,100.0,132.57,132.45,20.17]
[1720422680060,100.0,132.57,132.46,15.7116]
[1720422680372,100.0,132.57,132.48,6.2667]
[1720422680571,100.0,132.57,132.49,0.17]
[1720422680777,100.0,132.57,132.49,20.17]
[1720422681368,100.0,132.55,132.49,20.17]
[1720422682389,100.0,132.57,132.49,20.17]
[1720422683790,100.0,132.53,132.48,6.2667]
[1720422687667,100.0,132.51,132.46,15.7116]
[1720422687872,100.0,132.51,132.47,0.17]
[1720422688884,100.0,132.51,132.46,15.7116]
[1720422689671,100.0,132.51,132.47,0.17]
[1720422689987,100.0,132.54,132.47,0.17]
[1720422691271,100.0,132.56,132.47,0.17]
[1720422692498,100.0,132.51,132.47,0.17]
[1720422692676,117.28,132.51,132.47,0.17]
[1720422694694,0.17,132.57,132.47,17.45]
[1720422694695,17.28,132.52,132.47,17.45]
[1720422695597,17.28,132.51,132.47,17.45]
[1720422696598,100.0,132.55,132.47,0.17]
[1720422696894,100.0,132.55,132.49,17.28]
[1720422697193,39.08410374,132.54,132.49,17.28]
[1720422697383,17.28,132.54,132.49,17.28]
[1720422697584,100.0,132.55,132.49,17.28]
[1720422697785,17.28,132.54,132.49,17.28]
[1720422698294,100.0,132.53,132.47,0.17]
[1720422698474,100.0,132.53,132.47,20.17]
[1720422698475,17.28,132.52,132.47,20.17]
[1720422698675,11.13263028,132.48,132.47,37.45]
[1720422698877,11.13308889,132.48,132.47,37.45]
[1720422699276,11.13353371,132.48,132.47,37.45]
[1720422699673,11.13353371,132.49,132.47,37.45]
[1720422699972,100.0,132.55,132.48,17.28]
[1720422700180,11.13449581,132.49,132.48,17.28]
[1720422700398,11.13449581,132.49,132.48,17.45]
[1720422700604,17.28,132.54,132.48,17.45]
[1720422701219,17.28,132.54,132.49,0.17]
[1720422702172,17.28,132.53,132.48,17.28]
[1720422702372,17.28,132.52,132.47,37.45]
[1720422702579,17.28,132.52,132.48,0.17]
[1720422702781,17.28,132.52,132.46,15.7116]
[1720422703084,17.28,132.5,132.46,15.7116]
[1720422703508,11.13196356,132.47,132.46,15.7116]
[1720422704099,11.13196356,132.47,132.46,32.9916]
[1720422704297,11.13196356,132.49,132.46,32.9916]
[1720422704490,11.13196356,132.5,132.48,17.28]
[1720422704692,17.28,132.54,132.49,17.28]
[1720422704900,11.1363906,132.5,132.49,17.28]
[1720422705206,11.13481655,132.5,132.49,17.28]
[1720422705512,11.13481655,132.52,132.49,17.45]
[1720422705678,10.4700299,132.52,132.51,17.28]
[1720422705877,100.0,132.55,132.51,17.45]
[1720422706107,100.0,132.55,132.52,9.07140007]
[1720422706287,17.28,132.56,132.52,9.07140007]
[1720422706906,17.28,132.55,132.52,9.07140007]
[1720422707108,17.28,132.55,132.5,0.17]
[1720422707314,17.28,132.54,132.51,9.07216561]
[1720422708007,17.28,132.55,132.51,9.07216561]
[1720422709198,100.0,132.56,132.51,9.07216561]
[1720422710893,11.12869909,132.52,132.51,9.07216561]
[1720422711207,11.12869909,132.53,132.51,9.07216561]
[1720422711424,100.0,132.52,132.51,9.07216561]
[1720422711720,100.0,132.49,132.44,23.33032106]
[1720422711879,11.11651766,132.46,132.45,9.07513195]
[1720422712083,11.11651766,132.47,132.45,9.07513195]
[1720422713525,11.11651766,132.47,132.45,26.35513195]
[1720422713752,11.11791869,132.48,132.46,9.07513195]
[1720422714025,100.0,132.49,132.46,9.07513195]
[1720422714215,11.11735211,132.48,132.46,9.07513195]
[1720422714806,100.0,132.49,132.45,9.07513195]
[1720422715022,100.0,132.49,132.46,9.07513195]
[1720422715225,100.0,132.51,132.45,9.07513195]
[1720422715398,100.0,132.51,132.46,9.24513195]
[1720422715598,16.4924,132.52,132.47,9.07513195]
[1720422715798,16.4924,132.52,132.48,9.07513195]
[1720422716097,106.0181,132.53,132.44,390.37]
[1720422716098,100.0,132.53,132.44,390.37]
[1720422716298,100.0,132.53,132.45,9.07367998]
[1720422716612,100.0,132.53,132.46,0.17]
[1720422716803,100.0,132.53,132.47,25.07047998]
[1720422716999,100.0,132.53,132.48,9.07367998]
[1720422717325,15.5251,132.56,132.48,9.07367998]
[1720422717326,100.0,132.51,132.48,9.07367998]
[1720422717631,100.0,132.49,132.44,390.2]
[1720422717800,100.0,132.49,132.45,9.07472743]
[1720422718222,100.0,132.49,132.46,9.07520764]
[1720422718519,100.0,132.49,132.44,390.2]
[1720422718735,100.0,132.49,132.45,9.07521041]
[1720422719718,100.0,132.49,132.46,9.07521041]
[1720422720042,100.0,132.49,132.47,9.07521041]
[1720422720244,100.0,132.49,132.43,22.3262]
[1720422720414,100.0,132.49,132.44,9.24495815]
[1720422720614,100.0,132.51,132.45,9.07495815]
[1720422720814,100.0,132.51,132.46,0.17]
[1720422721029,100.0,132.51,132.47,9.07495815]
[1720422721642,100.0,132.51,132.43,22.3262]
[1720422721844,100.0,132.51,132.44,9.24440199]
[1720422722043,100.0,132.51,132.45,9.07440199]
[1720422723321,100.0,132.51,132.46,0.17]
[1720422723531,100.0,132.51,132.47,9.07440199]
[1720422723917,100.0,132.48,132.42,5.93700562]
[1720422724118,100.0,132.46,132.43,9.07562669]
[1720422724339,100.0,132.44,132.39,6.02063992]
[1720422724553,100.0,132.44,132.4,9.07737874]
[1720422724846,100.0,132.44,132.38,390.2]
[1720422724847,100.0,132.44,132.41,9.07737874]
[1720422725039,100.0,132.44,132.39,9.07737874]
[1720422725246,100.0,132.44,132.4,9.07737874]
[1720422725446,100.0,132.44,132.41,9.07737874]
[1720422725628,100.0,132.44,132.42,9.07737874]
[1720422725825,100.0,132.44,132.38,9.07737874]
[1720422727737,100.0,132.42,132.38,9.07737874]
[1720422728449,100.0,132.4,132.38,9.07737874]
[1720422728658,100.0,132.4,132.35,390.2]
[1720422728845,100.0,132.4,132.36,9.08018401]
[1720422731852,100.0,132.4,132.37,9.08018401]
[1720422732158,100.0,132.4,132.38,9.08018401]
[1720422732367,100.0,132.4,132.34,9.08018401]
[1720422732536,100.0,132.4,132.35,9.25018401]
[1720422732736,100.0,132.4,132.36,9.08018401]
[1720422733560,100.0,132.4,132.37,9.08018401]
[1720422733762,100.0,132.4,132.31,405.6753]
[1720422733938,100.0,132.4,132.32,29.25039813]
[1720422734133,100.0,132.4,132.33,9.08039813]
[1720422734339,100.0,132.4,132.34,0.17]
[1720422734633,116.2246,132.4,132.35,9.08039813]
[1720422734854,100.0,132.38,132.33,9.08039813]
[1720422735064,100.0,132.36,132.34,9.08039813]
[1720422735278,100.0,132.36,132.3,390.2]
[1720422735279,100.0,132.36,132.35,9.08039813]
[1720422735568,100.0,132.36,132.31,9.08039813]
[1720422735734,100.0,132.36,132.32,9.08174469]
[1720422735931,100.0,132.36,132.33,9.08174469]
[1720422736151,100.0,132.36,132.31,9.08174469]
[1720422736346,100.0,132.36,132.32,9.08174469]
[1720422736549,100.0,132.36,132.31,9.08174469]
[1720422736771,100.0,132.36,132.32,0.17]
[1720422736961,100.0,132.36,132.33,9.08174469]
[1720422738171,100.0,132.34,132.33,9.08174469]
[1720422738371,100.0,132.34,132.31,9.08174469]
[1720422738666,100.0,132.34,132.32,9.08174469]
[1720422738880,100.0,132.34,132.27,405.9735]
[1720422738881,100.0,132.34,132.27,411.98182404]
[1720422739037,100.0,132.34,132.28,9.08301302]
[1720422739436,100.0,132.32,132.28,9.08301302]
[1720422739961,100.0,132.32,132.29,9.08301302]
[1720422740154,100.0,132.32,132.26,9.08301302]
[1720422740636,6.1971,132.33,132.26,9.08301302]
[1720422740837,100.0,132.34,132.26,9.08301302]
[1720422741358,6.6074,132.36,132.27,77.2702]
[1720422741359,106.6074,132.36,132.27,77.2702]
[1720422741674,106.6074,132.36,132.28,9.25301302]
[1720422741834,106.6074,132.36,132.29,29.08301302]
[1720422742039,106.6074,132.36,132.3,9.25301302]
[1720422742347,115.7015,132.38,132.31,9.25301302]
[1720422742538,15.7015,132.38,132.32,9.08301302]
[1720422742874,115.7015,132.38,132.33,9.25301302]
[1720422743041,100.0,132.36,132.29,390.2]
[1720422743235,100.0,132.36,132.3,9.25238156]
[1720422743459,100.0,132.36,132.31,9.08238156]
[1720422744041,15.7015,132.38,132.32,0.17]
[1720422744255,15.7015,132.38,132.33,9.08238156]
[1720422744657,15.7015,132.38,132.34,0.17]
[1720422746241,115.7015,132.38,132.31,390.2]
[1720422746578,115.7015,132.38,132.32,9.0805147]
[1720422746742,115.7015,132.38,132.33,0.17]
[1720422746944,100.0,132.36,132.31,390.2]
[1720422747363,115.7015,132.38,132.32,0.17]
[1720422747565,115.7015,132.38,132.32,9.25170602]
[1720422747767,115.7015,132.38,132.33,9.08170602]
[1720422747966,15.7015,132.38,132.34,0.17]
[1720422749546,15.7015,132.38,132.33,0.17]
[1720422749762,115.7015,132.38,132.33,0.17]
[1720422750271,100.0,132.36,132.32,390.2]
[1720422751042,115.7015,132.38,132.32,390.2]
[1720422751241,115.7015,132.38,132.33,9.08138182]
[1720422751845,115.7015,132.38,132.34,0.17]
[1720422752285,15.7015,132.38,132.33,0.17]
[1720422752578,15.7015,132.38,132.34,9.08058574]
[1720422754459,15.7015,132.38,132.33,0.17]
[1720422754665,100.0,132.37,132.34,9.08078476]
[1720422754973,100.0,132.37,132.33,0.17]
[1720422755189,100.0,132.37,132.34,9.08133936]
[1720422755982,100.0,132.37,132.29,396.1117757]
[1720422756279,100.0,132.37,132.3,29.252081]
[1720422756471,100.0,132.37,132.31,9.082081]
[1720422756784,100.0,132.37,132.32,0.17]
[1720422756951,100.0,132.37,132.33,9.082081]
[1720422758804,100.0,132.35,132.33,9.082081]
[1720422759115,100.0,132.33,132.29,390.2]
[1720422759302,100.0,132.33,132.3,9.08243443]
[1720422759678,100.0,132.33,132.31,9.08243443]
[1720422759910,100.0,132.33,132.29,9.08243443]
[1720422760110,100.0,132.33,132.3,9.08243443]
[1720422760407,100.0,132.33,132.31,9.08243443]
[1720422760612,100.0,132.33,132.32,9.08243443]
[1720422760910,34.58,132.37,132.32,9.08243443]
[1720422760911,100.0,132.35,132.32,9.08243443]
[1720422761204,100.0,132.35,132.33,9.08263531]
[1720422761379,100.0,132.35,132.28,9.08263531]
[1720422761580,100.0,132.35,132.29,9.25264467]
[1720422761819,100.0,132.35,132.3,9.08264467]
[1720422762106,100.0,132.35,132.31,0.17]
[1720422762407,100.0,132.35,132.32,9.08236917]
[1720422762712,100.0,132.35,132.33,9.08236917]
[1720422762889,100.0,132.35,132.3,9.08236917]
[1720422764081,100.0,132.35,132.29,0.17]
[1720422764409,100.0,132.35,132.28,0.17]
[1720422764987,100.0,132.33,132.28,0.17]
[1720422765680,100.0,132.33,132.27,396.31122988]
[1720422765891,100.0,132.31,132.27,6.11122988]
[1720422766101,100.0,132.31,132.24,411.2831]
[1720422766414,100.0,132.31,132.24,417.41215788]
[1720422767103,100.0,132.31,132.25,20.17]
[1720422770083,100.0,132.31,132.25,410.37]
[1720422770614,100.0,132.31,132.25,390.37]
[1720422771913,100.0,132.29,132.25,390.2]
[1720422773413,100.0,132.31,132.26,0.17]
[1720422774719,21.84327544,132.3,132.26,0.17]
[1720422775010,21.84328482,132.29,132.26,0.17]
[1720422775314,100.0,132.31,132.26,0.17]
[1720422775895,15.2169,132.32,132.25,390.2]
[1720422775896,100.0,132.29,132.25,390.2]
[1720422776111,100.0,132.29,132.24,0.17]
[1720422776922,100.0,132.29,132.23,0.17]
[1720422777215,21.84343799,132.28,132.23,0.17]
[1720422777589,100.0,132.29,132.23,0.17]
[1720422777800,21.8448222,132.28,132.23,0.17]
[1720422778626,100.0,132.29,132.23,0.17]
[1720422778912,21.84559514,132.28,132.23,0.17]
[1720422779090,100.0,132.29,132.23,0.17]
[1720422779697,6.1872,132.3,132.23,0.17]
[1720422779900,28.03119566,132.3,132.23,0.17]
[1720422780501,11.10086159,132.24,132.23,0.17]
[1720422780726,4.75776493,132.27,132.23,483.2092]
[1720422780903,0.30963806,132.27,132.26,17.34]
[1720422781110,0.30963806,132.27,132.26,37.51]
[1720422781317,15.8158,132.35,132.27,15.3162]
[1720422781509,15.8158,132.35,132.31,17.34]
[1720422781911,33.1558,132.35,132.3,17.51]
[1720422782105,17.34,132.34,132.29,17.34]
[1720422782309,17.34,132.34,132.3,0.17]
[1720422782504,115.8158,132.35,132.27,405.5162]
[1720422782706,100.0,132.33,132.28,0.17]
[1720422782909,100.0,132.31,132.27,390.2]
[1720422783902,100.0,132.29,132.27,390.2]
[1720422784105,100.0,132.29,132.23,16.1979]
[1720422784405,116.0755,132.29,132.21,396.45353202]
[1720422785803,116.0755,132.29,132.22,0.17]
[1720422786006,11.10405476,132.26,132.22,0.17]
[1720422786412,116.0755,132.29,132.22,0.17]
[1720422786733,116.0755,132.29,132.22,20.17]
[1720422787733,100.0,132.26,132.21,390.3]
[1720422787935,100.0,132.26,132.21,0.1]
[1720422789739,100.0,132.26,132.21,0.27]
[1720422791957,100.0,132.26,132.21,0.1]
[1720422792254,100.0,132.24,132.21,0.1]
[1720422792544,16.0917,132.23,132.21,0.1]
[1720422793123,100.0,132.26,132.21,0.27]
[1720422793852,100.0,132.24,132.21,0.1]
[1720422796835,100.0,132.26,132.21,0.1]
[1720422797029,100.0,132.26,132.21,0.27]
[1720422798458,100.0,132.26,132.21,0.1]
[1720422799624,100.0,132.24,132.21,0.1]
[1720422800246,100.0,132.24,132.21,0.27]
[1720422800762,100.0,132.24,132.21,0.1]
[1720422802631,117.35,132.24,132.21,0.1]
[1720422803241,17.35,132.23,132.21,0.1]
[1720422804960,117.35,132.24,132.21,0.1]
[1720422805766,17.35,132.23,132.21,0.1]
[1720422806262,117.35,132.22,132.21,0.1]
[1720422808363,139.3625,132.22,132.21,0.1]
[1720422808664,100.0,132.19,132.16,0.8622959]
[1720422808866,17.35,132.17,132.16,0.8622959]
[1720422809568,100.0,132.19,132.16,0.8622959]
[1720422809764,17.35,132.17,132.16,0.8622959]
[1720422809968,100.0,132.19,132.16,0.8622959]
[1720422811465,22.0125,132.22,132.11,0.1]
[1720422811466,21.7703,132.14,132.11,0.1]
[1720422811660,100.0,132.13,132.11,0.1]
[1720422811965,21.7703,132.14,132.11,0.1]
[1720422811966,15.4653,132.14,132.11,0.1]
[1720422812165,106.305,132.18,132.11,0.1]
[1720422812368,121.7703,132.18,132.11,0.1]
[1720422812751,100.0,132.16,132.11,0.1]
[1720422812955,100.0,132.14,132.05,46.9762625]
[1720422813263,100.0,132.14,132.05,402.4362625]
[1720422814655,100.0,132.16,132.05,402.4362625]
[1720422815172,100.0,132.16,132.06,20.0]
[1720422815478,100.0,132.16,132.07,0.17]
[1720422815970,100.0,132.16,132.08,15.8663]
[1720422816170,100.0,132.16,132.09,0.17]
[1720422816953,121.7703,132.18,132.09,0.17]
[1720422817772,121.7703,132.18,132.09,390.37]
[1720422818269,100.0,132.15,132.09,390.2]
[1720422818471,100.0,132.13,132.09,390.2]
[1720422819577,100.0,132.15,132.09,390.2]
[1720422820277,100.0,132.13,132.09,390.2]
[1720422822976,100.0,132.17,132.09,390.2]
[1720422823274,100.0,132.17,132.1,15.8549]
[1720422823479,100.0,132.15,132.1,15.8549]
[1720422823853,100.0,132.15,132.07,405.3756]
[1720422824057,100.0,132.15,132.08,0.17]
[1720422824561,100.0,132.15,132.07,405.3756]
[1720422824971,100.0,132.15,132.08,34.74]
[1720422825557,100.0,132.17,132.09,20.0]
[1720422825779,100.0,132.17,132.1,0.17]
[1720422826681,115.3429,132.19,132.11,6.6377]
[1720422826867,115.3429,132.19,132.12,0.17]
[1720422827280,100.0,132.16,132.11,390.2]
[1720422827485,15.3429,132.19,132.11,390.2]
[1720422827683,100.0,132.18,132.12,15.5658]
[1720422827986,100.0,132.24,132.15,34.74]
[1720422828176,22.1822,132.26,132.15,34.74]
[1720422828177,122.1822,132.26,132.16,20.0]
[1720422828375,122.1822,132.26,132.16,410.2]
[1720422828569,122.1822,132.26,132.17,0.17]
[1720422828908,100.0,132.26,132.19,41.1698]
[1720422829086,100.0,132.29,132.2,20.17]
[1720422832688,100.0,132.29,132.2,410.37]
[1720422834585,100.0,132.26,132.2,410.37]
[1720422834974,100.0,132.26,132.2,390.37]
[1720422838500,100.0,132.26,132.2,0.17]
[1720422839094,100.0,132.27,132.2,0.17]
[1720422839404,100.0,132.29,132.2,0.17]
[1720422839589,122.1822,132.31,132.2,54.91]
[1720422839783,100.0,132.31,132.2,20.17]
[1720422839990,100.0,132.31,132.21,34.74]
[1720422840186,100.0,132.31,132.22,20.17]
[1720422840386,100.0,132.31,132.22,410.37]
[1720422840613,100.0,132.29,132.22,390.2]
[1720422840793,100.0,132.27,132.22,390.2]
[1720422841192,100.0,132.21,132.15,6.0567]
[1720422841587,100.0,132.23,132.15,6.0567]
[1720422841787,100.0,132.25,132.15,40.7967]
[1720422842590,100.0,132.23,132.15,40.7967]
[1720422842907,100.0,132.23,132.15,6.0567]
[1720422845094,100.0,132.2,132.14,390.2]
[1720422845314,100.0,132.2,132.1,16.4453]
[1720422845315,100.0,132.18,132.1,16.4453]
[1720422846414,3.83512358,132.17,132.1,16.4453]
[1720422846715,100.0,132.16,132.1,16.4453]
[1720422849319,115.6713,132.2,132.11,0.17]
[1720422849532,115.6713,132.2,132.11,20.17]
[1720422849533,100.0,132.2,132.11,20.17]
[1720422849901,11.1238782,132.12,132.11,20.17]
[1720422850099,11.1238782,132.12,132.11,410.37]
[1720422850406,11.1238782,132.13,132.11,410.37]
[1720422851328,11.1238782,132.12,132.11,410.37]
[1720422851807,100.0,132.16,132.11,410.2]
[1720422852402,11.12150539,132.12,132.11,410.2]
[1720422853097,103.83512358,132.16,132.11,410.2]
[1720422853319,3.83512358,132.15,132.11,20.0]
[1720422853519,11.12689874,132.12,132.11,20.0]
[1720422853827,11.1287995,132.12,132.11,20.17]
[1720422854024,11.12783961,132.12,132.1,406.6453]
[1720422854231,11.12783961,132.11,132.1,406.6453]
[1720422854441,11.12783961,132.11,132.1,389.06723402]
[1720422855036,3.83512358,132.12,132.1,389.06723402]
[1720422855526,100.0,132.14,132.1,389.06723402]
[1720422857333,100.0,132.14,132.1,366.21179546]
[1720422859307,100.0,132.14,132.06,5.94417739]
[1720422859515,100.0,132.14,132.07,0.17]
[1720422859715,100.0,132.14,132.06,0.17]
[1720422860631,115.4982,132.11,132.03,0.8622959]
[1720422861308,115.4982,132.11,132.03,6.87371353]
[1720422861504,115.4982,132.11,132.03,0.8622959]
[1720422861933,100.0,132.09,132.03,0.8622959]
[1720422862139,115.4982,132.11,132.03,0.8622959]
[1720422862418,100.0,132.08,132.03,0.8622959]
[1720422862923,100.0,132.1,132.03,0.8622959]
[1720422863331,100.0,132.08,132.03,0.8622959]
[1720422863542,100.0,132.1,132.03,0.8622959]
[1720422864132,100.0,132.1,132.04,0.17]
[1720422866727,115.336,132.15,132.04,20.17]
[1720422866930,115.336,132.15,132.07,34.74]
[1720422867132,100.0,132.17,132.08,0.17]
[1720422867448,100.0,132.14,132.08,386.38179546]
[1720422869729,100.0,132.16,132.08,386.38179546]
[1720422872053,100.0,132.13,132.08,386.38179546]
[1720422872445,100.0,132.13,132.08,366.38179546]
[1720422872753,100.0,132.13,132.08,366.21179546]
[1720422872955,100.0,132.11,132.08,366.21179546]
[1720422873136,100.0,132.11,132.05,422.55199546]
[1720422873342,100.0,132.11,132.06,20.0]
[1720422875043,100.0,132.13,132.07,0.17]
[1720422876234,100.0,132.15,132.07,0.17]
[1720422876835,100.0,132.15,132.07,34.91]
[1720422877257,100.0,132.15,132.07,401.12179546]
[1720422880063,100.0,132.13,132.07,401.12179546]
[1720422880236,100.0,132.13,132.07,366.21179546]
[1720422880765,100.0,132.11,132.07,366.21179546]
[1720422883266,100.0,132.11,132.06,20.0]
[1720422885874,100.0,132.09,132.06,20.0]
[1720422886170,100.0,132.09,132.03,0.8622959]
[1720422886357,100.0,132.07,132.03,0.8622959]
[1720422887958,100.0,132.08,132.03,0.8622959]
[1720422889872,100.0,132.1,132.04,0.17]
[1720422891779,100.0,132.08,132.04,0.17]
[1720422892282,100.0,132.08,132.03,0.8622959]
[1720422896569,100.0,132.04,132.03,0.8622959]
[1720422896975,116.5262,132.06,132.03,0.8622959]
[1720422897671,100.0,132.06,132.03,0.8622959]
[1720422899471,100.0,132.04,132.03,0.8622959]
[1720422901752,100.0,132.08,132.03,0.8622959]
[1720422902258,100.0,132.11,132.04,0.17]
[1720422902976,34.74,132.23,132.04,0.17]
[1720422902977,100.0,132.15,132.04,34.91]
[1720422903185,100.0,132.12,132.05,20.0]
[1720422903406,100.0,132.12,132.06,0.17]
[1720422903678,100.0,132.16,132.06,0.17]
[1720422903883,100.0,132.16,132.06,34.91]
[1720422904062,100.0,132.14,132.07,20.0]
[1720422904383,100.0,132.14,132.08,0.17]
[1720422904857,100.0,132.12,132.07,20.0]
[1720422905052,100.0,132.12,132.05,20.0]
[1720422905274,100.0,132.12,132.06,0.17]
[1720422905971,100.0,132.15,132.06,0.17]
[1720422906559,100.0,132.15,132.06,34.91]
[1720422906966,100.0,132.15,132.06,401.12179546]
[1720422907877,115.643,132.17,132.07,6.3849]
[1720422908055,115.643,132.17,132.08,70.1151]
[1720422908254,100.0,132.15,132.08,35.3751]
[1720422908476,100.0,132.13,132.08,35.3751]
[1720422909066,100.0,132.13,132.08,35.2051]
[1720422909261,100.0,132.13,132.07,372.59669546]
[1720422909462,100.0,132.11,132.07,372.59669546]
[1720422909678,100.0,132.13,132.07,6.3849]
[1720422910265,100.0,132.11,132.05,372.16728755]
[1720422910468,100.0,132.11,132.06,20.0]
[1720422910979,100.0,132.13,132.06,20.0]
[1720422911676,100.0,132.13,132.06,54.74]
[1720422911891,100.0,132.13,132.06,20.0]
[1720422912062,100.0,132.11,132.07,0.17]
[1720422912810,100.0,132.09,132.06,20.0]
[1720422913102,100.0,132.09,132.05,5.95549209]
[1720422913272,100.0,132.09,132.04,22.04]
[1720422913473,100.0,132.09,132.05,20.0]
[1720422915283,100.0,132.11,132.05,20.0]
[1720422915588,100.0,132.13,132.05,20.0]
[1720422915796,100.0,132.13,132.06,0.17]
[1720422915986,100.0,132.11,132.05,20.0]
[1720422916161,100.0,132.11,132.04,6.23536439]
[1720422916367,100.0,132.11,132.05,0.17]
[1720422916762,100.0,132.11,132.06,6.4896]
[1720422916999,100.0,132.11,132.07,0.17]
[1720422917577,16.5013,132.16,132.07,20.17]
[1720422917784,100.0,132.14,132.08,50.8302]
[1720422917984,100.0,132.14,132.09,20.17]
[1720422918302,21.8678064,132.13,132.09,20.17]
[1720422918463,100.0,132.14,132.09,20.17]
[1720422922476,100.0,132.12,132.09,20.17]
[1720422923301,100.0,132.14,132.09,20.17]
[1720422923607,11.11791861,132.11,132.09,20.17]
[1720422924579,11.11791861,132.12,132.09,20.17]
[1720422924791,11.11791861,132.12,132.09,386.38179546]
[1720422925296,11.11791861,132.13,132.09,386.38179546]
[1720422926388,11.11791861,132.12,132.09,386.38179546]
[1720422926891,11.11791861,132.1,132.09,366.21179546]
[1720422927189,100.0,132.12,132.09,366.21179546]
[1720422927382,100.0,132.14,132.09,366.21179546]
[1720422927583,11.10904968,132.1,132.09,366.21179546]
[1720422927887,100.0,132.14,132.09,366.21179546]
[1720422928088,11.10825049,132.1,132.09,366.21179546]
[1720422928285,11.10825049,132.1,132.09,366.38179546]
[1720422928802,11.10825049,132.11,132.09,366.38179546]
[1720422928987,11.10825049,132.12,132.1,0.17]
[1720422929778,11.10825049,132.11,132.1,0.17]
[1720422929978,11.10825049,132.12,132.1,0.17]
[1720422930998,11.10825049,132.12,132.09,20.17]
[1720422931321,11.10825049,132.13,132.09,20.17]
[1720422931605,11.10825049,132.12,132.09,20.17]
[1720422931909,16.5013,132.16,132.09,20.17]
[1720422931910,11.09979351,132.13,132.09,20.17]
[1720422933101,16.5013,132.16,132.09,20.17]
[1720422933420,16.6664,132.19,132.1,51.1027]
[1720422933706,15.0,132.3,132.14,34.74]
[1720422933707,100.0,132.22,132.14,34.74]
[1720422933926,100.0,132.22,132.15,0.17]
[1720422934216,16.6664,132.23,132.15,20.17]
[1720422934430,16.6664,132.23,132.16,34.74]